Cogmind - Beta 11.1 @@@ ROGUE MODE // 2022.04.24 @ 17:43:12 Player: slowdive Result: Self-destructed Performance ------------- Evolutions (2) 1000 Regions Visited (6) 1200 Robots Destroyed (100) 500 Value Destroyed (2599) 2599 Prototype IDs (3) 60 Alien Tech Used (0) 0 Bonus (1317) 1317 TOTAL SCORE: 6676 Bonus ------- High Alert Combat Kills 352 Follower Combat Kills 265 Entered Garrisons 200 Used RIF Installer 500 Cogmind --------- Core Integrity 191/550 Matter 89/300 Energy 125/125 System Corruption 0% Temperature Cool (48) Movement Walking (400) Ox4 Location -8/Materials Parts ------- > --- POWER (1) -------- Light Ion Engine > --- PROPULSION (3) --- Aluminum Leg Aluminum Leg > --- UTILITY (5) ------ Huge Storage Unit Machine Analyzer Melee Analysis Suite > --- WEAPON (2) ------- Plasma Cannon Improved Assault Rifle > --- INVENTORY (25) --- Aluminum Leg Flight Unit Flight Unit Flight Unit Flight Unit Flight Unit Flight Unit Small Storage Unit Medium Storage Unit Machine Analyzer Advanced Targeting Computer Relay Coupler [Grunt] (26) Improved Assault Rifle Minigun Minigun EMP Blaster Mini Grenade Launcher Heavy Mace Katana Peak State ------------ > --- POWER ------------ (None) > --- PROPULSION ------- Improved Aluminum Leg Improved Aluminum Leg Titanium Leg > --- UTILITY ---------- Huge Storage Unit Machine Analyzer Energy Filter Relay Coupler [Duelist] Drone Bay > --- WEAPON ----------- Minigun Improved Datajack > --- INVENTORY -------- Aluminum Leg Aluminum Leg Aluminum Leg Aluminum Leg Flight Unit Flight Unit Flight Unit Flight Unit Flight Unit Flight Unit Small Storage Unit Medium Storage Unit Machine Analyzer Advanced Targeting Computer Light Armor Plating Relay Coupler [Grunt] Plasma Cannon Improved Assault Rifle Improved Assault Rifle Minigun EMP Blaster Rocket Launcher Mini Grenade Launcher Heavy Mace Katana [Rating: 33] Favorites ----------- Power Ion Engine Engine Ion Engine Propulsion Light Treads Treads Light Treads Leg Aluminum Leg Utility Huge Storage Unit Device Improved Trap Extractor Storage Huge Storage Unit Processor Machine Analyzer Hackware Relay Coupler [NC] Protection Reactive Plating Weapon Minigun Energy Gun Field Laser Energy Cannon Plasma Cannon Ballistic Gun Minigun Ballistic Cannon Heavy Assault Cannon Launcher Rocket Launcher Impact Weapon Heavy Mace Special Melee Weapon Improved Datajack Build | -11 -10 -10 -9 -9 -9 -8 ------- Run | Scr Mat Min Mat Sto Gar Mat Slots Evolved 4 | . . . 2 . . 2 Power . | . . . . . . . Propulsion 1 | . . . . . . 1 Utility 3 | . . . 2 . . 1 Weapon . | . . . . . . . Parts Attached 84 | . 3 6 25 7 14 29 Power 7 | . . . 2 2 1 2 Engine 7 | . . . 2 2 1 2 Core . | . . . . . . . Reactor . | . . . . . . . Propulsion 23 | . 2 1 6 . 6 8 Treads 12 | . 2 1 6 . 3 . Leg 11 | . . . . . 3 8 Wheel . | . . . . . . . Hover . | . . . . . . . Flight . | . . . . . . . Utility 26 | . 1 2 9 3 3 8 Device 15 | . 1 1 4 2 2 5 Storage 2 | . . 1 1 . . . Processor 3 | . . . 2 . . 1 Hackware 2 | . . . . . 1 1 Protection 4 | . . . 2 1 . 1 Artifact . | . . . . . . . Weapon 28 | . . 3 8 2 4 11 Energy Gun 3 | . . 1 2 . . . Energy Cannon 2 | . . . . . . 2 Ballistic Gun 10 | . . . 3 1 2 4 Ballistic Cannon 3 | . . 2 1 . . . Launcher 7 | . . . 2 1 2 2 Special Weapon . | . . . . . . . Impact Weapon 1 | . . . . . . 1 Slashing Weapon . | . . . . . . . Piercing Weapon . | . . . . . . . Special Melee Weapon 2 | . . . . . . 2 Unidentified Prototypes 3 | . . . 2 1 . . Parts Lost 23 | . . . 6 1 3 13 Power 3 | . . . 1 . . 2 Propulsion 7 | . . . 1 . 1 5 Utility 10 | . . . 4 1 1 4 Weapon 3 | . . . . . 1 2 Highest Loss Streak 4 | . . . 3 1 2 4 To Critical Strikes 1 | . . . . . . 1 Average Slot Usage (%) 92 | . 93 85 93 98 97 87 Engine 10 | . 14 14 10 11 11 3 Treads 17 | . 21 28 21 22 17 . Leg 6 | . 6 . . . 4 26 Device 11 | . 8 14 15 9 8 10 Storage 12 | . 14 14 15 11 11 9 Processor 10 | . . . 6 22 22 12 Hackware 1 | . . . . . . 7 Protection 1 | . . . 5 . . . Energy Gun 1 | . . . 3 . . . Ballistic Gun 9 | . 28 1 4 21 13 9 Ballistic Cannon 4 | . . 13 8 . . . Launcher 2 | . . . . . 8 2 Naked Turns . | . . . . . . . Heaviest Build 116 | 14 15 30 116 100 100 103 Greatest Support 43 | 20 40 40 40 40 40 43 Greatest Overweight (x) 9 | . . . 2 2 9 4 Average Overweight (x) 1 | . . . . 2 2 2 Largest Inventory Capacity 25 | 8 8 10 25 25 25 25 Average Capacity 20 | 8 8 9 19 25 25 25 Most Carried 25 | 6 8 10 25 25 25 25 Average Carried 18 | 6 7 8 15 22 24 23 Final Capacity 25 | 8 8 10 25 25 25 25 Final Carried 25 | 6 8 10 21 25 24 19 Class Distribution -------------------- 92% | Mutant 7% | Scavenger-Mutant Dominant Class ---------------- Mutant | -10/Materials Mutant | -10/Mines Mutant | -9/Materials Mutant | -9/Storage Mutant | -9/Garrison Mutant | -8/Materials Resources | -11 -10 -10 -9 -9 -9 -8 ----------- Run | Scr Mat Min Mat Sto Gar Mat Matter Collected 1948 | 200 70 76 813 166 285 338 Remotely . | . . . . . . . Salvage Created 2615 | . 97 64 1194 214 531 515 Parts 171 | . 9 5 62 16 39 40 Haulers Intercepted 4 | . . . 4 . . . Recyclers Shooed 8 | . . . 8 . . . Parts Field Recycled . | . . . . . . . Retrieved Matter . | . . . . . . . Parts Self-Destructed . | . . . . . . . Prevented . | . . . . . . . Kills | -11 -10 -10 -9 -9 -9 -8 ------- Run | Scr Mat Min Mat Sto Gar Mat Combat Hostiles Destroyed 80 | . 2 2 23 5 26 22 Melee 1 | . . . . . . 1 Guns 24 | . 2 . 6 5 4 7 Cannons 17 | . . 2 13 . . 2 AOE 35 | . . . 4 . 22 9 Classes Destroyed 10 | . 2 . 6 1 1 . Worker 6 | . 1 . 1 . . 4 Builder 3 | . . . 2 . . 1 Hauler 4 | . . . 4 . . . Recycler 5 | . . . 5 . . . Watcher 2 | . . . 2 . . . Swarmer 30 | . . . 6 . 11 13 Grunt 36 | . 2 2 11 2 12 7 Brawler 1 | . . . . . 1 . Protector 1 | . . . . 1 . . Sentry 12 | . . . 6 2 2 2 Best Kill Streak 10 | . 2 2 8 2 9 10 Combat Bots Only 9 | . 1 2 3 2 9 9 Max Kills in Single Turn 6 | . 1 1 6 1 5 5 Gunslinging . | . . . . . . . Exploded 5 | . . . 3 . 5 3 Melee 1 | . . . . . . 1 Uniques/NPCs Destroyed . | . . . . . . . Combat | -11 -10 -10 -9 -9 -9 -8 -------- Run | Scr Mat Min Mat Sto Gar Mat Damage Taken 4741 | . 178 139 1360 482 844 1738 Core 655 | . 29 . 138 30 99 359 Absorbed by Shields . | . . . . . . . Core Remaining (%) 73 | 100 . 88 . . 33 . Volleys Fired 178 | . 7 2 94 19 24 32 Largest 2 | . 2 1 2 2 2 2 Hottest 103 | . 40 60 102 48 50 103 Shots Fired 259 | . 14 2 121 38 34 50 Gun 144 | . 14 . 44 38 22 26 Cannon 87 | . . 2 71 . . 14 Launcher 28 | . . . 6 . 12 10 Special . | . . . . . . . Kinetic 204 | . 14 2 102 38 22 26 Thermal 27 | . . . 13 . . 14 Explosive 23 | . . . 1 . 12 10 Electromagnetic 5 | . . . 5 . . . Robot Hit Streak 17 | . 5 7 8 17 13 16 Robot Miss Streak 4 | . 2 . 3 1 2 4 Penetration Max 1 | . . . 1 . . . Secondary Targets 2 | . . . . . 2 . Max Gunslinging Chain 1 | . . . . . 1 . Shots Hit Robots 200 | . 9 2 77 32 26 54 Core Hits 115 | . 4 2 41 8 30 30 Critical Kills 1 | . . . . . . 1 Critical Parts Destroyed 1 | . . . . . . 1 Critical Strikes 10 | . . . 8 . . 2 Blast 8 | . . . 8 . . . Smash 2 | . . . . . . 2 Melee Attacks 32 | . . . . . . 32 Impact 21 | . . . . . . 21 Slashing . | . . . . . . . Piercing . | . . . . . . . Sneak Attacks 7 | . . . . . . 7 Combat Hostiles . | . . . . . . . Follow-up Attacks . | . . . . . . . Damage Inflicted 7785 | . 138 103 3294 479 1566 2205 Guns 1710 | . 137 . 497 479 290 307 Cannons 2558 | . . 102 2199 . . 257 Explosions 2853 | . . . 585 . 1276 992 Melee 649 | . . . . . . 649 Ramming 15 | . 1 1 13 . . . Kinetic 3826 | . 137 102 2511 479 290 307 Thermal 442 | . . . 185 . . 257 Explosive 2658 | . . . 390 . 1276 992 Electromagnetic 195 | . . . 195 . . . Impact 649 | . . . . . . 649 Slashing . | . . . . . . . Piercing . | . . . . . . . Highest Corruption . | . . . . . . . Average Corruption . | . . . . . . . Corruption Purged . | . . . . . . . Corruption Blocked . | . . . . . . . Overload Shots . | . . . . . . . Overflow Damage 376 | . . . 212 . 17 147 Projectiles 191 | . . . 184 . . 7 Explosions 104 | . . . 28 . 17 59 Melee 81 | . . . . . . 81 Knockbacks 18 | . . . 14 . . 4 Impact 4 | . . . . . . 4 Kinetic 10 | . . . 10 . . . Secondary 4 | . . . 4 . . . Self-Inflicted Damage 631 | . . . 48 . 244 339 Shots 17 | . . . 1 . 8 8 Rammed 5 | . 1 1 3 . . . Targets Rammed 5 | . 1 1 3 . . . Kicked . | . . . . . . . Crushed . | . . . . . . . Highest Temperature 225 | . . 29 225 13 28 120 Average Temperature 51 | . . 17 61 4 11 42 Received Heat Transfer 1557 | . 96 9 648 180 228 396 Siege Activations . | . . . . . . . Robots Corrupted . | . . . . . . . Combat Hostiles . | . . . . . . . Parts Fried 2 | . . . . . . 2 Impact Corruptions 5 | . . . 2 . . 3 Robots Melted . | . . . . . . . Combat Hostiles . | . . . . . . . Parts Melted . | . . . . . . . Heat Transferred 907 | . . . 407 . . 500 Parts Sabotaged . | . . . . . . . Parts Stolen . | . . . . . . . Parts Stripped . | . . . . . . . Power Chain Reactions . | . . . . . . . Missiles Intercepted . | . . . . . . . Alert | -11 -10 -10 -9 -9 -9 -8 ------- Run | Scr Mat Min Mat Sto Gar Mat Peak Influence 1062 | . 133 51 467 335 1062 889 Initial 517 | . . 51 . 163 115 517 Average 368 | . 56 36 284 249 699 522 Maximum Alert Level 3 | . . . 2 1 3 3 Low Security (%) 35 | 100 100 100 35 37 4 . Level 1 23 | . . . 31 62 20 23 Level 2 26 | . . . 32 . 18 63 Level 3 14 | . . . . . 56 12 Level 4 . | . . . . . . . Level 5 . | . . . . . . . High Security . | . . . . . . . Max Security . | . . . . . . . Squads Dispatched 10 | . 2 . 1 3 . 4 Investigation 1 | . 1 . . . . . Extermination . | . . . . . . . Reinforcement 5 | . 1 . 1 . . 3 Assault 3 | . . . . 2 . 1 Garrison 1 | . . . . 1 . . Intercept . | . . . . . . . Searches Triggered . | . . . . . . . Construction Impeded 1 | . . . . . . 1 Haulers Reinforced . | . . . . . . . Active Scanning Responses . | . . . . . . . Cargo Convoy Interrupts . | . . . . . . . Stealth | -11 -10 -10 -9 -9 -9 -8 --------- Run | Scr Mat Min Mat Sto Gar Mat Distress Signals 10 | . 1 . 7 . . 2 Communications Jammed . | . . . . . . . Distress Signals . | . . . . . . . Times Spotted 131 | . 6 2 46 13 25 39 Peak Tracking Total 7 | . 3 2 6 5 7 6 Tactical Retreats 11 | . 1 . 6 . . 4 Traps | -11 -10 -10 -9 -9 -9 -8 ------- Run | Scr Mat Min Mat Sto Gar Mat Traps Triggered 6 | . 1 2 . 1 2 . Indirectly . | . . . . . . . Trap Hack Attempts . | . . . . . . . Triggered . | . . . . . . . Disarmed . | . . . . . . . Reprogrammed . | . . . . . . . Reused . | . . . . . . . Traps Extracted . | . . . . . . . Installed . | . . . . . . . Triggered . | . . . . . . . Machines | -11 -10 -10 -9 -9 -9 -8 ---------- Run | Scr Mat Min Mat Sto Gar Mat Machines Disabled 6 | . . . 1 . 1 4 Max in Single Turn 1 | . . . 1 . 1 1 Garrison Relay 1 | . . . . . 1 . Machines Sabotaged . | . . . . . . . Garrisons Compromised . | . . . . . . . Overloaded Fab Kills . | . . . . . . . Hacking | -11 -10 -10 -9 -9 -9 -8 --------- Run | Scr Mat Min Mat Sto Gar Mat Machines Accessed 11 | . 2 3 2 3 . 1 Terminals 7 | . 2 2 . 2 . 1 Fabricators . | . . . . . . . Repair Stations 1 | . . . 1 . . . Recycling Units 1 | . . . 1 . . . Scanalyzers . | . . . . . . . Garrison Access 1 | . . . . 1 . . Total Hacks 23 | . 6 5 5 6 . 1 Successful 11 | . 3 2 3 3 . . Failed 12 | . 3 3 2 3 . 1 Catastrophic 5 | . 2 1 . 1 . 1 Database Lockouts . | . . . . . . . Manual 13 | . 4 3 . 5 . 1 Terminals 15 | . 6 4 . 4 . 1 Fabricators . | . . . . . . . Repair Stations 3 | . . . 3 . . . Recycling Units 2 | . . . 2 . . . Scanalyzers . | . . . . . . . Garrison Access 2 | . . . . 2 . . Terminal Hacks 6 | . 3 2 . 1 . . Record 1 | . 1 . . . . . Robot Analysis 1 | . 1 . . . . . Open Door 2 | . . 1 . 1 . . Registered Components 1 | . 1 . . . . . Zone Layout 1 | . . 1 . . . . Fabricator Hacks . | . . . . . . . Repair Station Hacks 2 | . . . 2 . . . Scan Component 1 | . . . 1 . . . Repair 1 | . . . 1 . . . Recycling Unit Hacks 1 | . . . 1 . . . Report Inventory 1 | . . . 1 . . . Scanalyzer . | . . . . . . . Garrison Access Hacks 2 | . . . . 2 . . Unlock Access 1 | . . . . 1 . . Coupler Status 1 | . . . . 1 . . Unauthorized Hacks . | . . . . . . . Terminals . | . . . . . . . Fabricators . | . . . . . . . Repair Stations . | . . . . . . . Recycling Units . | . . . . . . . Scanalyzers . | . . . . . . . Garrison Access . | . . . . . . . Data Cores Recovered . | . . . . . . . Used . | . . . . . . . Hacking Detections 7 | . 2 1 1 2 . 1 Full Trace Events 1 | . 1 . . . . . Feedback Events . | . . . . . . . Feedback Blocked . | . . . . . . . Robot Schematics Acquired . | . . . . . . . Robots Built . | . . . . . . . Authchips . | . . . . . . . Time . | . . . . . . . Total Robot Build Rating . | . . . . . . . Part Schematics Acquired . | . . . . . . . Parts Built . | . . . . . . . Authchips . | . . . . . . . Time . | . . . . . . . Total Part Build Rating . | . . . . . . . Parts Repaired . | . . . . . . . Time 26 | . . . 26 . . . Parts Recycled . | . . . . . . . Recycled Matter . | . . . . . . . Retrieved Matter . | . . . . . . . Retrieved Components . | . . . . . . . Parts Scanalyzed . | . . . . . . . Part Schematics Acquired . | . . . . . . . Parts Damaged . | . . . . . . . Bothacking | -11 -10 -10 -9 -9 -9 -8 ------------ Run | Scr Mat Min Mat Sto Gar Mat Used RIF Installer 1 | . . . . . 1 . Robots Hacked 6 | . . . . . . 6 Non-combat 5 | . . . . . . 5 Combat 1 | . . . . . . 1 Robot Hacks Applied 8 | . . . . . . 8 parse_system 1 | . . . . . . 1 generate_anomaly 1 | . . . . . . 1 generate_echo 1 | . . . . . . 1 link_fov 1 | . . . . . . 1 amplify_resonance 1 | . . . . . . 1 streamctrl_low 1 | . . . . . . 1 formatsys_low 1 | . . . . . . 1 formatsys_high 1 | . . . . . . 1 Relay Couplers Released 4 | . . . . . 4 . Machine Destruction 4 | . . . . . 4 . Attached 2 | . . . . . 1 1 Fabnet Peak Effective % . | . . . . . . . Robots Rewired . | . . . . . . . Allies Hacked . | . . . . . . . Hacks Repelled . | . . . . . . . Allies | -11 -10 -10 -9 -9 -9 -8 -------- Run | Scr Mat Min Mat Sto Gar Mat Total Allies 5 | . . . . 2 . 3 Largest Group 2 | . . . . 2 . 1 Highest-Rated Group 62 | . . . . 62 . 18 Highest-Rated Ally 31 | . . . . 31 . 18 Total Orders 8 | . . . . 2 . 6 ROAM 3 | . . . . . . 3 EXPLORE 5 | . . . . 2 . 3 Ally Attacks 39 | . . . . 33 . 6 Total Damage 682 | . . . . 528 . 154 Kills 9 | . . . . 7 . 2 Allies Corrupted . | . . . . . . . Allies Melted . | . . . . . . . Intel | -11 -10 -10 -9 -9 -9 -8 ------- Run | Scr Mat Min Mat Sto Gar Mat Robot Analysis Total 1 | . 1 . . . . . Derelict Logs Recovered 1 | . . 1 . . . . Drone Launches 13 | . . . . 4 2 7 Drone Recoveries 8 | . . . . 3 2 3 Exploration | -11 -10 -10 -9 -9 -9 -8 ------------- Run | Scr Mat Min Mat Sto Gar Mat Turns Passed 5921 | 6 363 897 1694 476 1290 1195 Spaces Moved 2132 | 6 221 528 574 122 357 324 Core . | . . . . . . . Treads 1674 | . 158 528 574 122 292 . Legs 458 | 6 63 . . . 65 324 Wheels . | . . . . . . . Hover . | . . . . . . . Flight . | . . . . . . . Fastest Speed 120 | 120 120 160 160 320 320 260 Average Speed 239 | 120 148 160 233 320 337 304 Slowest Speed 750 | 120 160 160 320 320 750 400 Overloaded Moves . | . . . . . . . Propulsion Burnouts . | . . . . . . . Robots Hopped . | . . . . . . . Cave-ins Triggered . | . . . . . . . Exploration Rate (%) 38 | 2 23 81 40 16 64 40 Regions Visited 6 Branch Regions 2 Pre-discovered Areas 1 | . . 1 . . . . Known Exits Taken 1 | . . . . 1 . . Unknown Exits Taken 4 | 1 1 1 1 . . . Scrap Searched . | . . . . . . . Spaces Dug . | . . . . . . . Terrain Destroyed 146 | . . . 34 . 30 82 Melee . | . . . . . . . Projectile 26 | . . . 23 . . 3 AOE 120 | . . . 11 . 30 79 Terrain Rammed . | . . . . . . . Walls Destroyed . | . . . . . . . Machines Disabled . | . . . . . . . Actions | -11 -10 -10 -9 -9 -9 -8 --------- Run | Scr Mat Min Mat Sto Gar Mat Total 2645 | 5 243 579 783 173 418 444 Wait 106 | . . 31 41 15 4 15 Move 2125 | 5 220 527 573 121 355 324 Hop . | . . . . . . . Pick Up 59 | . 7 4 30 6 7 5 Fast Attach 20 | . 1 3 4 4 2 6 Attach 31 | . 1 1 11 1 5 12 Detach 5 | . . 1 1 1 1 1 Swap 33 | . 1 2 10 2 7 11 Drop 47 | . 5 7 16 4 9 6 Fire 178 | . 7 2 94 19 24 32 Melee 32 | . . . . . . 32 Ram . | . . . . . . . Kick . | . . . . . . . Crush 5 | . 1 1 3 . . . Escape Stasis 4 | . . . . . 4 . Rewire . | . . . . . . . Trap . | . . . . . . . Miscellaneous . | . . . . . . . Route ------- -11/Scrapyard -10/Materials -10/Mines (discovered 2 exits: *Mat x2) -9/Materials (discovered 2 exits: [*Min] / *Sto) -9/Storage -9/Garrison (discovered 2 exits: *Mat x2) -8/Materials History --------- Turn | Location | Event 1 | -11/Scrapyard | Discovered new exit (range 1) 7 | -11/Scrapyard | Entered Materials 129 | -10/Materials | Discovered new exit (range 16) 312 | -10/Materials | Build established: Mutant 370 | -10/Materials | Entered Mines 387 | -10/Mines | Met a Derelict who couldn't figure out how to use a Trap Extractor 602 | -10/Mines | Discovered new exit (range 5) 1188 | -10/Mines | Received a Rocket Launcher from a helpful Derelict 1192 | -10/Mines | Discovered new exit (range 15) 1216 | -10/Mines | Learned location of Mines (-8) 1267 | -10/Mines | Entered Materials 1267 | -9/Materials | Evolved 2 slots: Utility x2 2461 | -9/Materials | Discovered new exit (range 16) 2834 | -9/Materials | Discovered new exit (range 16) 2922 | -9/Materials | Lost 3 parts (1n2u) 2961 | -9/Materials | Entered Storage 3026 | -9/Storage | Met a pair of Derelict thieves 3347 | -9/Storage | Garrison activated, responded to threat 3421 | -9/Storage | Identified exit to Garrison 3437 | -9/Storage | Entered Garrison 3524 | -9/Garrison | Triggered checkpoint 3730 | -9/Garrison | Triggered checkpoint 3754 | -9/Garrison | Triggered checkpoint 3760 | -9/Garrison | Core integrity fell below 50% 3795 | -9/Garrison | Destroyed 9 combat bots 3992 | -9/Garrison | Triggered checkpoint 4021 | -9/Garrison | Destroyed 7 combat bots 4098 | -9/Garrison | Discovered new exit (range 8) 4230 | -9/Garrison | Triggered checkpoint 4276 | -9/Garrison | Triggered checkpoint 4450 | -9/Garrison | Triggered checkpoint 4618 | -9/Garrison | Discovered new exit (range 14) 4698 | -9/Garrison | Installed Relay Interface Framework 4727 | -9/Garrison | Entered Materials 4727 | -8/Materials | Evolved 2 slots: Propulsion x1, Utility x1 5527 | -8/Materials | First assault squad dispatched 5753 | -8/Materials | Lost 3 parts (1n2u) 5785 | -8/Materials | Core integrity fell below 50% 5820 | -8/Materials | Destroyed 9 combat bots 5823 | -8/Materials | Lost 4 parts (1n1u2w) 5922 | -8/Materials | Self-destructed Last Messages --------------- 05792_ Destroyed Rocket Launcher. 05795_ K-01 Serf collects debris. 05796_ Terminal disabled. 05799_ K-01 Serf collects debris. 05799_ S-10 Pest destroyed. 05802_ The unstable cave ceiling collapses. 05802_ K-01 Serf collects debris. 05822_ The unstable cave ceiling collapses. 05834_ >> Machine Analyzer network decryption results: 05834_ Terminal x1 05846_ W-25 Informer sends out distress signal. 05852_ Destroyed Flight Unit. 05852_ S-10 Pest destroyed. 05852_ K-01 Serf collects debris. 05858_ Aluminum Leg destroyed. 05867_ S-10 Pest destroyed. 05890_ K-01 Serf collects debris. 05906_ Imp. Aluminum Leg destroyed. 05919_ S-10 Pest destroyed. 05920_ Acquired 10 matter. Map ----- +----------------------------------------------------+ | ?????????????"""""??????????????????????? | | ????????????????????????????????????????? | | ?????????????????""?????????????????????? | | ?????????????????T"?????????????????????? | | ?????????????????""?????????????????????? | | ??????????# ????????????????????????????? | | ???????????"##??????????????????????????? | | ??????????? ??????????????????????????? | | ??????????? ??????????????????????????? | | ??????????? ????????????????????????? | | ???????????# """??"""??"""?????????????? | | ???????????#*%"""??"""??"""?????????????? | | ???????????# """??"""??"""?????????????? | | ???"""?"""?# ???????????????????????? | | ???"""?"""?# ????????????????????????? | | ???"""?"""?+ ????????????????????????? | | ???????????# ????????????????????????? | | ???????????# ##???????????????????????? | | ???"Y"?????# "#???????????????????????? | | ???"""?????# #????????????????????????? | | ############ %%###############??????????? | | [ #??????????? | | #??????????? | | [ #??????????? | | #+### #####/###########/##+##?????????? | | # ## #??# @ #?????????? | | # ## """ #??# #?????????? | | # ## """ #??# #?????????? | | # ## """ #??# """ #?????????? | | + ## #??# """ ! #?????????? | | " ##[[ #??# """ #?????????? | | # ##[[ #??# """ #?????????? | | ##### # [ #??# """ #?????????? | | # #??#???? #?????????? | | ###### ##+##???????#####?????????? | | %!% #??????????????????????? | | ![ #??????????????????????? | | ## #??????"""?????????????? | | !! ##= ## #??????"""?????????????? | | !!?## [ * # #??????"""?????????????? | | !???# #??????????????????????? | | ######## " [ #??????????????????????? | | ## ########+###???????????? | | ## % ##+###??????? | | %## #[ = #??????? | | *!%%= %! ^ +??????? | | ## +###### %^ "" #??????? | | ## = # #?# """ #??????? | | ######## " # """ #?# "" #??????? | | ???????# "T" # "R" ### #??????? | +----------------------------------------------------+ Best States ------------- Heat Dissipation 42 Energy Generation 14 Energy Capacity 280 Matter Stores 300 Matter Capacity 300 Sight Range 16 Robot Scan Range 14 Terrain Scan Range 14 Terrain Scan Density 10 Armor Coverage 150 Resistance: KI 20 Evasion (%) 55 Targeting Accuracy 6 Melee Accuracy 5 Recoil Reduction 2 Energy Filtering 30 Relay Coupler Types 1 Relay Coupler Value 28 Trap Extractor Capacity 6 Item Schematics ----------------- None Robot Schematics ------------------ None Fabricated ------------ Nothing Alien Tech Used ----------------- None Achievements -------------- Assimilation Complete Challenges ------------ None Game ------ Seed IntegrityPropulsionArchive Manual? 0 Play Time 01:00:55 Cumulative 52.1 hours Start 2022.04.24 @ 16:40:05 End 2022.04.24 @ 17:43:12 Sessions 1 Manual Loads 0 Difficulty Rogue Special Mode None Game No. 67 Rogue 67 Adventurer 0 Explorer 0 Win Type - Total 0 Types 0/0/0/0/0/0/0/0/0 Lore% 20 Gallery% 28 Achievement% 23 Wizard Run 0 Options --------- ASCII 0 Keyboard 0 Movement Numpad Keybinds 0 Fullscreen 2 Font 18/SmallcapsGlow Map View 76x50 Tactical HUD 1 Map Filters NONE Filters NONE Steam 1 RUN: d4b79647-87a8-40ec-a187-7aff982277a1